bitfinex/quotes_BTCUSD_20250822
["timestamp","ask_amount","ask_price","bid_price","bid_amount"]
[1755852083006,0.34163409,113280.0,113270.0,0.27538716]
[1755852083239,1.01625157,113280.0,113270.0,0.27538716]
[1755852086027,1.01625157,113280.0,113270.0,0.00868716]
[1755852086233,1.01625157,113280.0,113270.0,0.00559716]
[1755852086433,1.01950157,113280.0,113270.0,0.00359716]
[1755852086859,1.03856683,113280.0,113270.0,0.00359716]
[1755852087862,1.37587557,113280.0,113270.0,0.00359716]
[1755852088655,1.71587557,113280.0,113270.0,0.00359716]
[1755852089972,1.7386347,113280.0,113270.0,0.00359716]
[1755852091603,1.7651867,113280.0,113270.0,0.00359716]
[1755852093579,1.18849547,113270.0,113260.0,0.0004]
[1755852093724,1.3649678,113270.0,113260.0,0.0004]
[1755852093930,1.38476141,113270.0,113260.0,0.0004]
[1755852094517,1.3947738,113270.0,113260.0,0.0004]
[1755852094882,1.7347738,113270.0,113260.0,0.00544827]
[1755852095222,1.75131179,113270.0,113260.0,0.00544827]
[1755852095447,1.7347738,113270.0,113260.0,0.00544827]
[1755852095646,1.75130699,113270.0,113260.0,0.00544827]
[1755852096685,1.76512952,113270.0,113260.0,0.00544827]
[1755852097339,1.74859633,113270.0,113260.0,0.00544827]
[1755852097553,1.76511666,113270.0,113260.0,0.00544827]
[1755852097768,1.74858764,113270.0,113260.0,0.00544827]
[1755852097967,1.74858656,113270.0,113260.0,0.00544827]
[1755852098802,1.76510926,113270.0,113260.0,0.00544827]
[1755852099432,0.75318304,113270.0,113260.0,1e-08]
[1755852099646,1.81372714,113270.0,113260.0,1e-08]
[1755852099848,1.78894384,113270.0,113260.0,1e-08]
[1755852100026,1.82074755,113270.0,113260.0,1e-08]
[1755852100228,1.82074755,113270.0,113250.0,0.0004]
[1755852100229,0.51658484,113260.0,113250.0,0.0004]
[1755852100438,1.72149632,113260.0,113250.0,0.00088134]
[1755852100590,1.72474632,113260.0,113250.0,0.00088134]
[1755852100994,1.75130432,113260.0,113250.0,0.00088134]
[1755852103084,1.75330432,113260.0,113250.0,0.00088134]
[1755852103468,1.75327303,113260.0,113250.0,0.00088134]
[1755852105090,1.75325513,113260.0,113250.0,0.00088134]
[1755852106615,1.75324798,113260.0,113250.0,0.00088134]
[1755852109246,2.7651742,113260.0,113250.0,0.00088134]
[1755852109480,2.7651742,113260.0,113250.0,1e-08]
[1755852109690,2.7899575,113260.0,113250.0,1e-08]
[1755852110074,2.7651742,113260.0,113250.0,1e-08]
[1755852112103,2.81379208,113260.0,113250.0,1e-08]
[1755852112303,2.78900878,113260.0,113250.0,1e-08]
[1755852112693,2.80283416,113260.0,113250.0,1e-08]
[1755852112882,2.80083416,113260.0,113250.0,1e-08]
[1755852113096,2.80183416,113260.0,113250.0,1e-08]
[1755852113354,2.80483416,113260.0,113250.0,1e-08]
[1755852113884,2.80383416,113260.0,113250.0,1e-08]
[1755852114064,2.80483416,113260.0,113250.0,1e-08]
[1755852115931,2.80484033,113260.0,113250.0,1e-08]
[1755852116665,2.7821705,113260.0,113250.0,1e-08]
[1755852116871,2.80484423,113260.0,113250.0,1e-08]
[1755852117812,0.63179179,113260.0,113250.0,1e-08]
[1755852118017,1.79295801,113260.0,113250.0,1e-08]
[1755852120018,2.80488423,113260.0,113250.0,1e-08]
[1755852120445,1.45666571,113260.0,113250.0,1e-08]
[1755852122433,1.48846942,113260.0,113250.0,1e-08]
[1755852124121,1.48231541,113260.0,113250.0,1e-08]
[1755852124343,1.4885103,113260.0,113250.0,1e-08]
[1755852124959,1.48851156,113260.0,113250.0,1e-08]
[1755852125174,1.46467698,113260.0,113250.0,1e-08]
[1755852125545,1.45954698,113260.0,113250.0,0.00517001]
[1755852125743,0.80770956,113260.0,113250.0,0.00517001]
[1755852126030,1.33398348,113260.0,113250.0,0.00517001]
[1755852126231,1.14592652,113260.0,113250.0,0.00517001]
[1755852126434,1.10029743,113260.0,113250.0,0.00517001]
[1755852126624,0.95053743,113260.0,113250.0,0.00517001]
[1755852126855,0.90018293,113260.0,113250.0,0.00517001]
[1755852127059,0.1996501,113260.0,113250.0,0.25220849]
[1755852127269,0.18058484,113260.0,113250.0,0.25220849]
[1755852127477,0.18058484,113260.0,113250.0,0.33909324]
[1755852128062,0.5184018,113260.0,113250.0,0.33909324]
[1755852128242,0.5154018,113260.0,113250.0,0.1624928]
[1755852128655,1.0072018,113260.0,113250.0,0.09205476]
[1755852128845,1.0062018,113260.0,113250.0,0.09205476]
[1755852129041,1.02002433,113260.0,113250.0,0.09205476]
[1755852129362,1.02102433,113260.0,113250.0,0.09205476]
[1755852132344,1.02102433,113260.0,113250.0,0.11860676]
[1755852133333,0.68312737,113260.0,113250.0,0.2974147]
[1755852133505,1.02094433,113260.0,113250.0,0.2952072]
[1755852133709,0.87122433,113260.0,113250.0,0.11860676]
[1755852133957,0.87122433,113260.0,113250.0,0.2952072]
[1755852135119,0.87122433,113260.0,113250.0,0.11860676]
[1755852135319,0.87122433,113260.0,113250.0,0.2974147]
[1755852135516,0.53340737,113260.0,113250.0,0.2952072]
[1755852135673,0.87122433,113260.0,113250.0,0.2952072]
[1755852136826,0.35682253,113260.0,113250.0,0.31265622]
[1755852137013,0.01682253,113260.0,113250.0,0.31265622]
[1755852137877,0.19340737,113260.0,113250.0,0.31265622]
[1755852139262,0.5174018,113260.0,113250.0,0.31265622]
[1755852139865,0.01175919,113260.0,113250.0,0.31265622]
[1755852140065,0.34957615,113260.0,113250.0,0.31265622]
[1755852140277,0.01175919,113260.0,113250.0,0.31265622]
[1755852140893,0.20216579,113260.0,113250.0,0.31265622]
[1755852141335,0.02558095,113260.0,113250.0,0.31265622]
[1755852142504,0.01682176,113260.0,113250.0,0.31265622]
[1755852142706,0.01682176,113260.0,113250.0,0.57935622]
[1755852145684,0.01682176,113260.0,113250.0,0.65197972]
[1755852147124,0.01682176,113260.0,113250.0,0.6345307]
[1755852147332,0.51657197,113270.0,113260.0,0.19403386]
[1755852147547,0.86821054,113270.0,113260.0,0.43579861]
[1755852147949,0.85438893,113270.0,113260.0,0.25921377]
[1755852148155,0.85438893,113270.0,113260.0,0.28576277]
[1755852148509,0.85538893,113270.0,113260.0,0.28576277]
[1755852148721,0.85838893,113270.0,113260.0,0.55246277]
[1755852148924,0.85838893,113270.0,113260.0,0.72904761]
[1755852149125,0.86043893,113270.0,113260.0,0.40282277]
[1755852149324,0.86043893,113270.0,113260.0,0.54922277]
[1755852149590,0.87426029,113270.0,113260.0,0.54922277]
[1755852149790,0.54533013,113270.0,113260.0,0.55242277]
[1755852150025,0.88314709,113270.0,113260.0,0.55242277]
[1755852150684,0.54533013,113270.0,113260.0,0.54922277]
[1755852150895,0.88314709,113270.0,113260.0,0.54922277]
[1755852151495,0.88314709,113270.0,113260.0,0.55242277]
[1755852152736,0.88109709,113270.0,113260.0,0.72900761]
[1755852153480,0.02670816,113270.0,113260.0,0.74201834]
[1755852153905,0.01782136,113270.0,113260.0,0.74201834]
[1755852154099,0.01482136,113270.0,113260.0,0.74201834]
[1755852154277,0.01382136,113270.0,113260.0,0.74201834]
[1755852154533,0.01482136,113270.0,113260.0,0.74201834]
[1755852154737,0.01382136,113270.0,113260.0,0.74201834]
[1755852154952,0.01382136,113270.0,113260.0,0.74301834]
[1755852155533,0.51437074,113280.0,113270.0,0.17656925]
[1755852155707,0.33781696,113280.0,113270.0,0.28614302]
[1755852156132,0.67282194,113290.0,113270.0,0.28614302]
[1755852156344,0.51437063,113280.0,113270.0,0.33125477]
[1755852156585,0.51437063,113280.0,113270.0,0.28614302]
[1755852156755,0.51437063,113280.0,113270.0,0.31268902]
[1755852157409,0.33781696,113280.0,113270.0,0.31268902]
[1755852157622,0.33781696,113280.0,113270.0,0.57938902]
[1755852158058,0.51437063,113280.0,113270.0,0.57938902]
[1755852158243,0.51537063,113280.0,113270.0,0.57938902]
[1755852158638,0.17755367,113280.0,113270.0,0.57938902]
[1755852158854,0.51537063,113280.0,113270.0,0.57938902]
[1755852159372,0.35263654,113280.0,113270.0,0.57938902]
[1755852159572,0.01481958,113280.0,113270.0,0.66625867]
[1755852160517,0.19137325,113280.0,113270.0,0.66625867]
[1755852160748,0.01481958,113280.0,113270.0,0.66625867]
[1755852160994,0.19137325,113280.0,113270.0,0.66625867]
[1755852161345,0.19137325,113280.0,113270.0,0.57938902]
[1755852162718,0.52919021,113280.0,113270.0,0.57938902]
[1755852163214,0.01481958,113280.0,113270.0,0.57938902]
[1755852163431,0.52919021,113280.0,113270.0,0.57938902]
[1755852163644,0.19137325,113280.0,113270.0,0.57938902]
[1755852163863,0.52919021,113280.0,113270.0,0.57938902]
[1755852164072,0.01481958,113280.0,113270.0,0.57938902]
[1755852164254,0.01481958,113280.0,113270.0,0.66625867]
[1755852165484,0.19137325,113280.0,113270.0,0.66625867]
[1755852165665,0.19137325,113280.0,113270.0,0.57938902]
[1755852165666,0.52919021,113280.0,113270.0,0.57938902]
[1755852167934,0.19137325,113280.0,113270.0,0.57938902]
[1755852168236,0.52919021,113280.0,113270.0,0.57938902]
[1755852169467,0.35263654,113280.0,113270.0,0.57938902]
[1755852169606,0.52919021,113280.0,113270.0,0.57938902]
[1755852172025,0.01481958,113280.0,113270.0,0.6640298]
[1755852172228,0.01481958,113280.0,113270.0,1.00184676]
[1755852172648,0.001,113280.0,113270.0,1.00184676]
[1755852173278,0.4993123,113310.0,113290.0,0.17652365]
[1755852173477,0.86624531,113310.0,113300.0,0.41521378]
[1755852173700,0.86822531,113310.0,113300.0,0.41300725]
[1755852174010,0.86822531,113310.0,113300.0,0.26302475]
[1755852174206,0.86822531,113310.0,113300.0,0.26514475]
[1755852174644,0.86870671,113310.0,113300.0,0.26302475]
[1755852174868,0.86870671,113310.0,113300.0,0.3109155]
[1755852175073,0.53957398,113310.0,113300.0,0.487438]
[1755852175228,0.87739094,113310.0,113300.0,0.3109155]
[1755852175438,0.87939094,113310.0,113300.0,0.3109155]
[1755852175897,0.89320777,113310.0,113300.0,0.3109155]
[1755852176484,0.89420777,113310.0,113300.0,0.3109155]
[1755852176742,0.89420777,113310.0,113300.0,0.26302475]
[1755852177330,0.89113777,113310.0,113300.0,0.26514475]
[1755852177475,0.55332081,113310.0,113300.0,0.45911627]
[1755852177675,0.89113777,113310.0,113300.0,0.46228627]
[1755852177982,0.89013777,113310.0,113300.0,0.45911627]
[1755852178188,0.88813777,113310.0,113300.0,0.45911627]
[1755852178388,0.88913777,113310.0,113300.0,0.45911627]
[1755852178584,0.55232081,113310.0,113300.0,0.45911627]
[1755852178784,0.88913777,113310.0,113300.0,0.28259377]
[1755852178987,0.89220777,113310.0,113300.0,0.45911627]
[1755852179720,0.89120777,113310.0,113300.0,0.45911627]
[1755852179864,0.88813777,113310.0,113300.0,0.52661617]
[1755852180646,0.88813777,113310.0,113300.0,0.35009367]
[1755852180929,0.02298246,113310.0,113300.0,0.46228627]
[1755852181102,0.19948938,113310.0,113300.0,0.46228627]
[1755852181695,0.02298246,113310.0,113300.0,0.46228627]
[1755852182919,0.19948938,113310.0,113300.0,0.46228627]
[1755852183137,0.19948938,113310.0,113300.0,0.46328627]
[1755852183323,0.19948938,113310.0,113300.0,0.46428627]
[1755852184171,0.19948938,113310.0,113300.0,0.80547817]
[1755852184661,0.02298246,113310.0,113300.0,0.80547817]
[1755852185695,0.19948938,113310.0,113300.0,0.80547817]
[1755852185814,0.02298246,113310.0,113300.0,0.80547817]
[1755852186216,0.19948938,113310.0,113300.0,0.80547817]
[1755852187684,0.19948938,113310.0,113300.0,0.80547817]
[1755852188273,0.19080515,113310.0,113300.0,0.80547817]
[1755852188940,0.19080515,113310.0,113300.0,0.80523817]
[1755852189553,0.52862211,113310.0,113300.0,0.80523817]
[1755852190436,0.19080515,113310.0,113300.0,0.80523817]
[1755852190843,0.19278515,113310.0,113300.0,0.80515817]
[1755852191223,0.20160441,113310.0,113300.0,0.80515817]
[1755852192040,0.53942137,113310.0,113300.0,0.80515817]
[1755852193473,0.20160441,113310.0,113300.0,0.80515817]
[1755852193685,0.20467441,113310.0,113300.0,0.62326567]
[1755852193887,0.54249137,113310.0,113300.0,0.54877377]
[1755852194114,0.54249137,113310.0,113300.0,0.72529627]
[1755852194329,0.54249137,113310.0,113300.0,0.72741627]
[1755852194581,0.20160441,113310.0,113300.0,0.72741627]
[1755852194789,0.53942137,113310.0,113300.0,0.81745592]
[1755852195278,0.20160441,113310.0,113300.0,0.81745592]
[1755852195427,0.53942137,113310.0,113300.0,0.81745592]
[1755852196290,0.19278515,113310.0,113300.0,0.81745592]
[1755852196469,0.53060211,113310.0,113300.0,0.81428592]
[1755852196804,0.53060211,113310.0,113300.0,0.81745592]
[1755852196987,0.19278515,113310.0,113300.0,0.81745592]
[1755852199908,0.19278515,113310.0,113300.0,0.73058627]
[1755852200508,0.19080515,113310.0,113300.0,0.73058627]
[1755852202545,0.52862211,113310.0,113300.0,0.73058627]
[1755852202748,0.53059211,113310.0,113300.0,0.73058627]
[1755852203388,0.53059211,113310.0,113300.0,0.55406377]
[1755852203779,0.19277515,113310.0,113300.0,0.73058627]
[1755852203960,0.53059211,113310.0,113300.0,0.73058627]
[1755852204189,0.53059211,113310.0,113300.0,0.62894123]
[1755852204384,0.53059211,113310.0,113300.0,0.55406377]
[1755852205126,0.53059211,113310.0,113300.0,0.73058627]
[1755852206114,0.53059211,113310.0,113300.0,0.55406377]
[1755852206546,0.53059211,113310.0,113300.0,0.73058627]
[1755852206751,0.53059211,113310.0,113300.0,0.55406377]
[1755852206962,0.19277515,113310.0,113300.0,0.73058627]
[1755852207283,0.52862211,113310.0,113300.0,0.73058627]
[1755852208447,0.52806161,113310.0,113300.0,0.73058627]
[1755852208932,0.52806161,113310.0,113300.0,0.55406377]
[1755852209135,0.52806161,113310.0,113300.0,0.73058627]
[1755852209580,0.19959693,113310.0,113300.0,0.77709547]
[1755852209780,0.53685339,113310.0,113300.0,0.77709547]
[1755852210659,0.52806161,113310.0,113300.0,0.77709547]
[1755852210873,0.52806161,113310.0,113300.0,0.73058627]
[1755852211846,0.53003161,113310.0,113300.0,0.55089377]
[1755852212054,0.53318161,113310.0,113300.0,0.55089377]
[1755852212254,0.53003161,113310.0,113300.0,0.55402377]
[1755852212460,0.53003161,113310.0,113300.0,0.73054627]
[1755852213677,0.53003161,113310.0,113300.0,0.75073742]
[1755852213891,0.53003161,113310.0,113300.0,0.57421492]
[1755852214091,0.53003161,113310.0,113300.0,0.75073742]
[1755852214498,0.53003161,113310.0,113300.0,0.55089377]
[1755852214701,0.53318161,113310.0,113300.0,0.55089377]
[1755852214926,0.53318161,113310.0,113300.0,0.39957377]
[1755852215341,0.53318161,113310.0,113300.0,0.54921377]
[1755852216021,0.19592515,113310.0,113300.0,0.54921377]
[1755852216251,0.53318161,113310.0,113300.0,0.54921377]
[1755852216434,0.53325306,113310.0,113300.0,0.54921377]
[1755852218409,0.51943623,113310.0,113300.0,0.54921377]
[1755852218828,0.85676414,113310.0,113300.0,0.54921377]
[1755852219495,0.85676414,113310.0,113300.0,0.54821377]
[1755852219717,0.85676414,113310.0,113300.0,0.54721377]
[1755852219950,0.85876414,113310.0,113300.0,0.54721377]
[1755852220279,0.85876414,113310.0,113300.0,0.29324]
[1755852220280,1.19876414,113310.0,113300.0,0.29324]
[1755852220478,1.19776414,113310.0,113300.0,0.41634]
[1755852221400,1.19676414,113310.0,113300.0,0.41634]
[1755852221612,1.21058127,113310.0,113300.0,0.41634]
[1755852221843,1.21258127,113310.0,113300.0,0.2667]
[1755852222020,1.21258127,113310.0,113300.0,0.41634]
[1755852222572,1.21258127,113310.0,113300.0,0.2667]
[1755852222781,1.21258127,113310.0,113300.0,0.4163]
[1755852223019,1.21258127,113310.0,113300.0,0.2667]
[1755852223222,1.21258127,113310.0,113300.0,0.4163]
[1755852223584,1.21258127,113310.0,113300.0,0.2667]
[1755852223937,1.21258127,113310.0,113300.0,0.41626]
[1755852225563,1.21258127,113310.0,113300.0,0.14956]
[1755852231539,1.21258127,113310.0,113300.0,0.41626]
[1755852235763,1.21258127,113310.0,113300.0,0.14956]
[1755852236173,0.1765225,113300.0,113290.0,0.06792]
[1755852236421,0.17653808,113290.0,113280.0,0.1712168]
[1755852236614,0.8564439,113290.0,113280.0,0.2940348]
[1755852236816,0.8564439,113290.0,113280.0,0.2960048]
[1755852236817,0.51595599,113290.0,113280.0,0.2960048]
[1755852237181,0.53293446,113290.0,113280.0,0.23624475]
[1755852239949,0.87057593,113290.0,113280.0,0.23720475]
[1755852240295,0.87061709,113290.0,113280.0,0.23720475]
[1755852240718,0.19560655,113290.0,113280.0,0.23720475]
[1755852240957,0.87061709,113290.0,113280.0,0.23720475]
[1755852241908,0.87061709,113290.0,113280.0,0.23620475]
[1755852242341,0.87061709,113290.0,113280.0,0.26274975]
[1755852242805,0.53311182,113290.0,113280.0,0.26274975]
[1755852242974,0.52995182,113290.0,113280.0,0.26471975]
[1755852243382,0.53311182,113290.0,113280.0,0.26471975]
[1755852245660,0.53311182,113290.0,113280.0,0.26274975]
[1755852246714,0.52995182,113290.0,113280.0,0.26471975]
[1755852246941,0.52995182,113290.0,113280.0,0.26791975]
[1755852247200,0.52786182,113290.0,113280.0,0.26791975]
[1755852248512,0.01381847,113290.0,113280.0,0.54382711]
[1755852249094,0.51402777,113300.0,113280.0,0.54382711]
[1755852249303,0.85402777,113300.0,113290.0,0.08909147]
[1755852249487,0.85402777,113300.0,113290.0,0.09106147]
[1755852249689,0.85402777,113300.0,113290.0,0.12080347]
[1755852250508,0.85502777,113300.0,113290.0,0.12080347]
[1755852250954,0.85602777,113300.0,113290.0,0.12080347]
[1755852251311,0.85502777,113300.0,113290.0,0.12080347]
[1755852251714,0.85602777,113300.0,113290.0,0.12080347]
[1755852251916,0.85502777,113300.0,113290.0,0.12080347]
[1755852252126,0.85602777,113300.0,113290.0,0.12080347]
[1755852252330,0.86984542,113300.0,113290.0,0.12080347]
[1755852253139,0.87193542,113300.0,113290.0,0.11539675]
[1755852253342,0.87509542,113300.0,113290.0,0.11342675]
[1755852255111,0.53759015,113300.0,113290.0,0.11342675]
[1755852255441,0.87509542,113300.0,113290.0,0.11342675]
[1755852256483,0.87193542,113300.0,113290.0,0.11539675]
[1755852256845,0.53443015,113300.0,113290.0,0.11539675]
[1755852257054,0.87193542,113300.0,113290.0,0.11859675]
[1755852257275,0.87193542,113300.0,113290.0,0.11539675]
[1755852257593,0.35852292,113300.0,113290.0,0.11342675]
[1755852257794,0.53504542,113300.0,113290.0,0.11342675]
[1755852260447,0.87230455,113300.0,113290.0,0.11342675]
[1755852262041,0.87230455,113300.0,113290.0,0.11551675]
[1755852262830,0.01581765,113300.0,113290.0,0.37808861]
[1755852263060,0.19234015,113300.0,113290.0,0.71326409]
[1755852263263,0.52972235,113300.0,113290.0,0.19934381]
[1755852263471,0.19234015,113300.0,113290.0,0.37588189]
[1755852263665,0.52972235,113300.0,113290.0,0.37588189]
[1755852263851,0.52872235,113300.0,113290.0,0.37588189]
[1755852264053,0.52872235,113300.0,113290.0,0.64258189]
[1755852264276,0.19234015,113300.0,113290.0,0.46604381]
[1755852264702,0.52865228,113300.0,113290.0,0.40265577]
[1755852264897,0.52765228,113300.0,113290.0,0.40265577]
[1755852265795,0.52765228,113300.0,113290.0,0.40365577]
[1755852266713,0.52765228,113300.0,113290.0,0.40465577]
[1755852266848,0.52765228,113300.0,113290.0,0.58119385]
[1755852267525,0.52765228,113300.0,113290.0,0.40465577]
[1755852267934,0.52765228,113300.0,113290.0,0.58119385]
[1755852270022,0.52765228,113300.0,113290.0,0.49152542]
[1755852271449,0.19034015,113300.0,113290.0,0.49152542]
[1755852271607,0.52765228,113300.0,113290.0,0.6680635]
[1755852272855,0.52765228,113300.0,113290.0,0.49152542]
[1755852273099,0.52964228,113300.0,113290.0,0.49152542]
[1755852273829,0.52765228,113300.0,113290.0,0.6680635]
[1755852274055,0.19034015,113300.0,113290.0,0.6680635]
[1755852274270,0.0004814,113310.0,113300.0,0.1765225]
[1755852274472,0.0004814,113310.0,113300.0,0.83891903]
[1755852274596,0.0004814,113310.0,113300.0,1.10860903]
[1755852274800,0.0004814,113310.0,113300.0,0.7712969]
[1755852275002,0.0004814,113310.0,113300.0,1.13514503]
[1755852277598,0.01429661,113310.0,113300.0,1.13514503]
[1755852278054,0.0004814,113310.0,113300.0,1.13514503]
[1755852278253,0.0004814,113310.0,113300.0,0.7978329]
[1755852278435,0.17698832,113310.0,113300.0,0.7978329]
[1755852278647,0.0004814,113310.0,113300.0,0.7978329]
[1755852279240,0.17698832,113310.0,113300.0,0.7978329]
[1755852279633,0.0004814,113310.0,113300.0,0.7978329]
[1755852280611,0.01429676,113310.0,113300.0,0.83813897]
[1755852283947,0.19080368,113310.0,113300.0,0.83813897]
[1755852286872,0.01429676,113310.0,113300.0,0.83813897]
[1755852287074,0.19080368,113310.0,113300.0,0.83817897]
[1755852287688,0.01429676,113310.0,113300.0,0.90605897]
[1755852289700,0.01429676,113310.0,113300.0,1.2433711]
[1755852290695,0.01429676,113310.0,113300.0,0.90605897]
[1755852293101,0.01429676,113310.0,113300.0,0.90705897]
[1755852293335,0.01429676,113310.0,113300.0,0.90805897]
[1755852294344,0.01429676,113310.0,113300.0,1.24526106]
[1755852296237,0.01429676,113310.0,113300.0,0.90805897]
[1755852296448,0.01429676,113310.0,113300.0,1.24526106]
[1755852296887,0.01429676,113310.0,113300.0,0.90805897]
[1755852297123,0.01429676,113310.0,113300.0,1.24526106]
[1755852297457,0.01429676,113310.0,113300.0,1.58246315]
[1755852297854,0.01429676,113310.0,113300.0,1.24526106]
[1755852298525,0.01429676,113310.0,113300.0,0.90805897]
[1755852298668,0.01429676,113310.0,113300.0,1.24526106]
[1755852299466,0.01429676,113310.0,113300.0,1.09602106]
[1755852299749,0.19575368,113310.0,113300.0,0.57162682]
[1755852299963,0.53295577,113310.0,113300.0,0.57162682]
[1755852300191,0.53295577,113310.0,113300.0,0.39960977]
[1755852300407,0.53295577,113310.0,113300.0,0.55228977]
[1755852300622,0.87015786,113310.0,113300.0,0.53484075]
[1755852300825,0.8563425,113310.0,113300.0,0.295276]
[1755852301071,1.1963425,113310.0,113300.0,0.42138]
[1755852301281,1.1963425,113310.0,113300.0,0.15468]
[1755852301708,1.1963425,113310.0,113300.0,0.15368]
[1755852301918,1.1963425,113310.0,113300.0,4e-05]
[1755852302124,1.1983425,113310.0,113300.0,4e-05]
[1755852302332,1.1973425,113310.0,113300.0,4e-05]
[1755852302542,1.21163224,113310.0,113300.0,4e-05]
[1755852302973,1.21263224,113310.0,113300.0,4e-05]
[1755852306725,1.17686509,113310.0,113300.0,4e-05]
[1755852306931,1.17870509,113310.0,113300.0,4e-05]
[1755852308650,1.17985509,113310.0,113300.0,4e-05]
[1755852311138,0.50497877,113310.0,113300.0,4e-05]
[1755852311291,1.17985509,113310.0,113300.0,4e-05]
[1755852316328,1.16603749,113310.0,113300.0,4e-05]
[1755852319336,1.16488749,113310.0,113300.0,4e-05]
[1755852319551,1.17870647,113310.0,113300.0,4e-05]
[1755852321963,1.19772596,113310.0,113300.0,4e-05]
[1755852322743,1.17870647,113310.0,113300.0,4e-05]
[1755852324430,1.19773595,113310.0,113300.0,4e-05]
[1755852325612,1.34949595,113310.0,113300.0,4e-05]
[1755852326409,1.35569441,113310.0,113300.0,4e-05]
[1755852327498,1.3722309,113310.0,113300.0,4e-05]
[1755852328248,1.37223092,113310.0,113300.0,4e-05]
[1755852331235,1.37225682,113310.0,113300.0,4e-05]
[1755852332783,1.39604632,113310.0,113300.0,4e-05]
[1755852333840,1.37225682,113310.0,113300.0,4e-05]
[1755852334255,1.37328545,113310.0,113300.0,4e-05]
[1755852334459,1.3960625,113310.0,113300.0,4e-05]
[1755852334723,1.372273,113310.0,113300.0,4e-05]
[1755852334863,1.37227319,113310.0,113300.0,4e-05]
[1755852335220,1.39606269,113310.0,113300.0,4e-05]
[1755852335640,1.39721269,113310.0,113300.0,4e-05]
[1755852336056,1.4222945,113310.0,113300.0,4e-05]
[1755852336267,1.75973266,113310.0,113300.0,4e-05]
[1755852336477,1.76156977,113310.0,113300.0,4e-05]
[1755852336691,1.74775079,113310.0,113300.0,4e-05]
[1755852337104,1.77847013,113310.0,113300.0,4e-05]
[1755852337306,1.75368063,113310.0,113300.0,4e-05]
[1755852337478,1.75767967,113310.0,113300.0,4e-05]
[1755852337890,1.75367967,113310.0,113300.0,4e-05]
[1755852338110,1.75767967,113310.0,113300.0,4e-05]
[1755852338324,1.7576101,113310.0,113300.0,4e-05]
[1755852338546,1.42307149,113310.0,113300.0,4e-05]
[1755852338913,1.42007149,113310.0,113300.0,4e-05]
[1755852339120,1.46073855,113310.0,113300.0,4e-05]
[1755852342362,1.46073713,113310.0,113300.0,4e-05]
[1755852343659,1.4607272,113310.0,113300.0,4e-05]
[1755852344501,1.79826517,113310.0,113300.0,4e-05]
[1755852344717,1.77441968,113310.0,113300.0,4e-05]
[1755852345892,1.76059953,113310.0,113300.0,4e-05]
[1755852349201,1.7744197,113310.0,113300.0,4e-05]
[1755852350614,1.7732697,113310.0,113300.0,4e-05]
[1755852351251,1.79710442,113310.0,113300.0,4e-05]
[1755852352286,1.7744197,113310.0,113300.0,4e-05]
[1755852352626,1.84708052,113310.0,113300.0,4e-05]
[1755852352832,1.82431481,113310.0,113300.0,4e-05]
[1755852353074,1.8470718,113310.0,113300.0,4e-05]
[1755852353323,1.79949279,113310.0,113300.0,4e-05]
[1755852353559,1.79949122,113310.0,113300.0,4e-05]
[1755852355305,6.79949122,113310.0,113300.0,4e-05]
[1755852355719,6.77440941,113310.0,113300.0,4e-05]
[1755852357814,6.77325941,113310.0,113300.0,4e-05]
[1755852358519,6.77325941,113310.0,113270.0,0.07043804]
[1755852358520,0.17655367,113280.0,113270.0,0.07043804]
[1755852358717,0.17655367,113280.0,113270.0,0.07253804]
[1755852358718,1.00231089,113280.0,113270.0,0.07253804]
[1755852359362,1.0161322,113280.0,113270.0,0.07253804]
[1755852360326,1.35390703,113280.0,113270.0,0.07253804]
[1755852360531,1.35390703,113280.0,113270.0,0.07559804]
[1755852362258,1.35590703,113280.0,113270.0,0.07559804]
[1755852362464,1.69590703,113280.0,113270.0,0.00516]
[1755852362666,1.72045903,113280.0,113270.0,0.00516]
[1755852362868,1.74774638,113280.0,113270.0,0.00516]
[1755852363267,1.76430646,113280.0,113270.0,0.00516]
[1755852363465,1.76630646,113280.0,113270.0,0.00516]
[1755852363707,1.76836646,113280.0,113270.0,0.00516]
[1755852364603,1.76630523,113280.0,113270.0,0.00516]
[1755852366172,1.76836523,113280.0,113270.0,0.00516]
[1755852366385,1.76630523,113280.0,113270.0,0.00516]
[1755852370314,1.76594523,113280.0,113270.0,0.00516]
[1755852370513,1.74313631,113280.0,113270.0,0.00516]
[1755852370726,1.76590976,113280.0,113270.0,0.00516]
[1755852371721,1.61562976,113280.0,113270.0,0.00516]
[1755852371927,1.76590976,113280.0,113270.0,0.00516]
[1755852372336,1.74934725,113280.0,113270.0,0.00516]
[1755852372978,1.4116499,113280.0,113270.0,0.00516]
[1755852373181,1.40543896,113280.0,113270.0,0.00516]
[1755852373387,1.35980968,113280.0,113270.0,0.00516]
[1755852373960,1.20960968,113280.0,113270.0,0.00516]
[1755852374164,1.35980968,113280.0,113270.0,0.00516]
[1755852374384,1.35966228,113280.0,113270.0,0.00516]
[1755852375270,0.68457498,113280.0,113270.0,0.00516]
[1755852375467,1.35966228,113280.0,113270.0,0.00516]
[1755852379583,0.51656925,113270.0,113260.0,0.296441]
[1755852379793,1.0043129,113270.0,113260.0,0.296441]
[1755852379965,1.0043129,113270.0,113260.0,0.295341]
[1755852380533,1.0043129,113270.0,113260.0,0.298531]
[1755852380729,1.0053129,113270.0,113260.0,0.2990124]
[1755852381672,1.0063129,113270.0,113260.0,0.2990124]
[1755852386418,1.0084429,113270.0,113260.0,0.2671814]
[1755852388054,1.0084429,113270.0,113260.0,0.2692714]
[1755852388274,1.0116629,113270.0,113260.0,0.2671814]
[1755852388488,1.37450642,113270.0,113260.0,0.0004814]
[1755852388832,1.41762872,113270.0,113260.0,0.0004814]
[1755852389079,1.41141561,113270.0,113260.0,0.0004814]
[1755852389249,1.41762846,113270.0,113260.0,0.0004814]
[1755852389959,1.41762438,113270.0,113260.0,0.0004814]
[1755852390108,1.41762285,113270.0,113260.0,0.0004814]
[1755852390317,1.43144583,113270.0,113260.0,0.0004814]
[1755852391204,0.51660044,113250.0,113240.0,0.00359]
[1755852391446,1.34252774,113250.0,113240.0,0.00568]
[1755852391896,1.3563522,113250.0,113240.0,0.00568]
[1755852392286,1.36522754,113250.0,113240.0,0.00568]
[1755852394022,1.36522754,113250.0,113240.0,0.00668]
[1755852394813,1.36735754,113250.0,113240.0,0.00349]
[1755852396000,1.36735754,113250.0,113240.0,0.0014]
[1755852396490,1.39391554,113250.0,113240.0,0.0014]
[1755852397103,1.39713554,113250.0,113240.0,0.0014]
[1755852397316,1.37057754,113250.0,113240.0,0.0014]
[1755852397483,1.39713654,113250.0,113240.0,0.0014]
[1755852399714,1.37057754,113250.0,113240.0,0.0014]
[1755852400535,1.37057754,113250.0,113240.0,0.027959]
[1755852402152,1.36114782,113250.0,113240.0,0.02501181]
[1755852402555,1.35792782,113250.0,113240.0,0.02501181]
[1755852405866,1.34410336,113250.0,113240.0,0.02501181]
[1755852407498,1.35792849,113250.0,113240.0,0.02501181]
[1755852408307,1.69628775,113250.0,113240.0,0.02501181]